fUST/lending_fUST_20240322
["ID","MTS","AMOUNT","RATE_DAILY","PERIOD"]
[320050315,1711115464257,-808.45,0.00033424,2]
[320050316,1711115464267,-213.65161175,0.00033424,2]
[320050317,1711115464276,-500.0,0.00033424,2]
[320050318,1711115464285,-616.53,0.00033424,2]
[320050319,1711115464300,-500.0,0.00033424,2]
[320050320,1711115464310,-2114.34,0.00033424,2]
[320050321,1711115464320,-579.77,0.00033424,2]
[320050322,1711115464335,-854.2,0.00033424,2]
[320050323,1711115464344,-1432.33,0.00033424,2]
[320050324,1711115464354,-1109.84,0.00033424,2]
[320050325,1711115464363,-2496.11,0.00033424,2]
[320050326,1711115464373,-705.27,0.00033424,2]
[320050327,1711115464382,-811.02,0.00033424,2]
[320050328,1711115464392,-1450.07,0.00033424,2]
[320050329,1711115464401,-264.72141414,0.00033424,2]
[320050330,1711115464410,-525.82,0.00033424,2]
[320050331,1711115464502,-594.77,0.00033424,2]
[320050332,1711115464512,-2110.5,0.00033424,2]
[320050333,1711115464521,-653.88,0.00033424,2]
[320050334,1711115464534,-500.0,0.00033424,2]
[320050335,1711115464547,-500.0,0.00033424,2]
[320050336,1711115464558,-500.0,0.00033424,2]
[320050337,1711115464567,-2170.67,0.00033424,2]
[320050338,1711115464577,-500.0,0.00033424,2]
[320050339,1711115464588,-500.0,0.00033424,2]
[320050340,1711115464597,-500.0,0.00033424,2]
[320050341,1711115464607,-500.0,0.00033424,2]
[320050342,1711115464616,-266.95482425,0.00033424,2]
[320050343,1711115464625,-3328.74,0.00033424,2]
[320050344,1711115464635,-500.0,0.00033424,2]
[320050345,1711115464644,-500.0,0.00033424,2]
[320050346,1711115464654,-872.36,0.00033424,2]
[320050347,1711115464663,-567.31,0.00033424,2]
[320050348,1711115464674,-523.07,0.00033424,2]
[320050349,1711115464684,-500.0,0.00033424,2]
[320050350,1711115464693,-500.0,0.00033424,2]
[320050351,1711115464702,-662.01,0.00033424,2]
[320050352,1711115464712,-500.0,0.00033424,2]
[320050353,1711115464721,-2025.62,0.00033424,2]
[320050354,1711115464730,-500.0,0.00033424,2]
[320050355,1711115464739,-500.0,0.00033424,2]
[320050356,1711115464749,-471.7448917,0.00033424,2]
[320050357,1711115464758,-9316.4,0.00033424,2]
[320050358,1711115464768,-500.0,0.00033424,2]
[320050359,1711115464778,-2931.18,0.00033424,2]
[320050360,1711115464787,-500.0,0.00033424,2]
[320050361,1711115464799,-500.0,0.00033424,2]
[320050362,1711115464808,-891.94,0.00033424,2]
[320050363,1711115464818,-709.56,0.00033424,2]
[320050364,1711115464828,-572.61,0.00033424,2]
[320050365,1711115464838,-500.0,0.00033424,2]
[320050366,1711115464849,-22444.09,0.00033424,2]
[320050367,1711115464858,-505.53,0.00033424,2]
[320050368,1711115464868,-2628.51,0.00033424,2]
[320050369,1711115464877,-2148.91,0.00033424,2]
[320050370,1711115464886,-500.0,0.00033424,2]
[320050371,1711115464896,-599.04,0.00033424,2]
[320050372,1711115464905,-2181.35,0.00033424,2]
[320050373,1711115464914,-1053.89,0.00033424,2]
[320050374,1711115464924,-2225.28,0.00033424,2]
[320050375,1711115464933,-2785.42,0.00033424,2]
[320050376,1711115464942,-4008.14,0.00033424,2]
[320050377,1711115464951,-3127.98,0.00033424,2]
[320050378,1711115464960,-500.0,0.00033424,2]
[320050379,1711115464969,-561.94,0.00033424,2]
[320050380,1711115464978,-547.24,0.00033424,2]
[320050381,1711115464988,-1586.83,0.00033424,2]
[320050382,1711115464998,-905.49,0.00033424,2]
[320050383,1711115465008,-588.65,0.00033424,2]
[320050384,1711115465018,-511.88,0.00033424,2]
[320050385,1711115465030,-604.36,0.00033424,2]
[320050386,1711115465042,-5969.81,0.00033424,2]
[320050387,1711115465052,-1166.06,0.00033424,2]
[320050388,1711115465062,-2279.41,0.00033424,2]
[320050389,1711115465072,-31274.5,0.00033424,2]
[320050390,1711115465084,-1051.13,0.00033424,2]
[320050391,1711115465094,-30529.47,0.00033424,2]
[320050392,1711115465104,-5703.1,0.00033424,2]
[320050393,1711115465114,-6699.23,0.00033424,2]
[320050394,1711115465124,-591.2,0.00033424,2]
[320050395,1711115465134,-2922.32,0.00033424,2]
[320050396,1711115465144,-318.33077286,0.00033424,2]
[320050397,1711115465154,-577.95244467,0.00033424,2]
[320050398,1711115465164,-500.0,0.00033424,2]
[320050399,1711115465173,-500.0,0.00033424,2]
[320050400,1711115465183,-2119.44,0.00033424,2]
[320050401,1711115465193,-668.63,0.00033424,2]
[320050402,1711115465203,-2385.98,0.00033424,2]
[320050403,1711115465212,-500.0,0.00033424,2]
[320050404,1711115465222,-1835.6,0.00033424,2]
[320050405,1711115465232,-500.0,0.00033424,2]
[320050406,1711115465242,-500.0,0.00033424,2]
[320050407,1711115465251,-794.49,0.00033424,2]
[320050408,1711115465260,-1781.83,0.00033424,2]
[320050409,1711115465269,-5258.14,0.00033424,2]
[320050410,1711115465279,-500.0,0.00033424,2]
[320050411,1711115465291,-665.32,0.00033424,2]
[320050412,1711115465301,-402.464081,0.00033425,2]
[320050413,1711115465311,-164.384459,0.00033569,2]
[320050414,1711115465321,-171.848981,0.00033569,2]
[320050415,1711115465331,-151.654482,0.00033569,2]
[320050416,1711115465341,-167.8695,0.00033569,2]
[320050417,1711115465350,-170.104274,0.00033569,2]
[320050418,1711115465360,-1976.587665,0.00033569,2]
[320050419,1711115465370,-170.869595,0.00033569,2]
[320050420,1711115465379,-182.055642,0.00033569,2]
[320050421,1711115465389,-206.875072,0.00033569,2]
[320050422,1711115465399,-250.604566,0.00033569,2]
[320050423,1711115465408,-182.055642,0.00033569,2]
[320050424,1711115465417,-170.869596,0.00033569,2]
[320050425,1711115465427,-524.590679,0.00033569,2]
[320050426,1711115465437,-784.577607,0.00033569,2]
[320050427,1711115465447,-654.33238,0.00033781,2]
[320050428,1711115465458,-733.637328,0.00033781,2]
[320050429,1711115465468,-997.0,0.00033814,5]
[320050430,1711115465479,-150.5,0.0003387,35]
[320050431,1711115465489,-150.5,0.0003388,35]
[320050432,1711115465500,-150.5,0.0003389,35]
[320050433,1711115465511,-955.22,0.00033972,2]
[320050434,1711115465522,-676.25,0.00033972,2]
[320050435,1711115465532,-500.0,0.00033972,2]
[320050436,1711115465549,-616.97,0.00033972,2]
[320050437,1711115465560,-808.45,0.00033972,2]
[320050438,1711115465570,-500.0,0.00033972,2]
[320050439,1711115465581,-616.53,0.00033972,2]
[320050440,1711115465595,-500.0,0.00033972,2]
[320050441,1711115465606,-2114.34,0.00033972,2]
[320050442,1711115465617,-579.77,0.00033972,2]
[320050443,1711115465628,-854.2,0.00033972,2]
[320050444,1711115465639,-1432.33,0.00033972,2]
[320050445,1711115465649,-1109.84,0.00033972,2]
[320050446,1711115465659,-2496.11,0.00033972,2]
[320050447,1711115465669,-705.27,0.00033972,2]
[320050448,1711115465680,-811.02,0.00033972,2]
[320050449,1711115465691,-1450.07,0.00033972,2]
[320050450,1711115465702,-525.82,0.00033972,2]
[320050451,1711115465712,-594.77,0.00033972,2]
[320050452,1711115465722,-2110.5,0.00033972,2]
[320050453,1711115465732,-653.88,0.00033972,2]
[320050454,1711115465742,-500.0,0.00033972,2]
[320050455,1711115465752,-500.0,0.00033972,2]
[320050456,1711115465761,-500.0,0.00033972,2]
[320050457,1711115465771,-2170.67,0.00033972,2]
[320050458,1711115465780,-500.0,0.00033972,2]
[320050459,1711115465796,-500.0,0.00033972,2]
[320050460,1711115465806,-500.0,0.00033972,2]
[320050461,1711115465815,-500.0,0.00033972,2]
[320050462,1711115465825,-3328.74,0.00033972,2]
[320050463,1711115465835,-500.0,0.00033972,2]
[320050464,1711115465846,-500.0,0.00033972,2]
[320050465,1711115465855,-872.36,0.00033972,2]
[320050466,1711115465866,-567.31,0.00033972,2]
[320050467,1711115465876,-523.07,0.00033972,2]
[320050468,1711115465887,-500.0,0.00033972,2]
[320050469,1711115465897,-500.0,0.00033972,2]
[320050470,1711115465908,-662.01,0.00033972,2]
[320050471,1711115465918,-500.0,0.00033972,2]
[320050472,1711115465928,-2025.62,0.00033972,2]
[320050473,1711115465939,-500.0,0.00033972,2]
[320050474,1711115465949,-500.0,0.00033972,2]
[320050475,1711115465960,-9316.4,0.00033972,2]
[320050476,1711115465970,-500.0,0.00033972,2]
[320050477,1711115465982,-2931.18,0.00033972,2]
[320050478,1711115465992,-500.0,0.00033972,2]
[320050479,1711115466004,-500.0,0.00033972,2]
[320050480,1711115466015,-891.94,0.00033972,2]
[320050481,1711115466026,-709.56,0.00033972,2]
[320050482,1711115466037,-572.61,0.00033972,2]
[320050483,1711115466055,-500.0,0.00033972,2]
[320050484,1711115466066,-22444.09,0.00033972,2]
[320050485,1711115466076,-505.53,0.00033972,2]
[320050486,1711115466086,-2628.51,0.00033972,2]
[320050487,1711115466098,-2148.91,0.00033972,2]
[320050488,1711115466108,-500.0,0.00033972,2]
[320050489,1711115466118,-599.04,0.00033972,2]
[320050490,1711115466128,-2181.35,0.00033972,2]
[320050491,1711115466138,-1053.89,0.00033972,2]
[320050492,1711115466148,-2225.28,0.00033972,2]
[320050493,1711115466158,-2785.42,0.00033972,2]
[320050494,1711115466168,-4008.14,0.00033972,2]
[320050495,1711115466178,-3127.98,0.00033972,2]
[320050496,1711115466188,-500.0,0.00033972,2]
[320050497,1711115466198,-561.94,0.00033972,2]
[320050498,1711115466295,-547.24,0.00033972,2]
[320050499,1711115466305,-1586.83,0.00033972,2]
[320050500,1711115466315,-905.49,0.00033972,2]
[320050501,1711115466325,-588.65,0.00033972,2]
[320050502,1711115466337,-604.36,0.00033972,2]
[320050503,1711115466347,-5969.81,0.00033972,2]
[320050504,1711115466357,-1166.06,0.00033972,2]
[320050505,1711115466366,-2279.41,0.00033972,2]
[320050506,1711115466376,-31274.5,0.00033972,2]
[320050507,1711115466386,-1051.13,0.00033972,2]
[320050508,1711115466396,-30529.47,0.00033972,2]
[320050509,1711115466405,-5703.1,0.00033972,2]
[320050510,1711115466414,-6699.23,0.00033972,2]
[320050511,1711115466424,-591.2,0.00033972,2]
[320050512,1711115466433,-2922.32,0.00033972,2]
[320050513,1711115466443,-500.0,0.00033972,2]
[320050514,1711115466453,-500.0,0.00033972,2]
[320050515,1711115466462,-2119.44,0.00033972,2]
[320050516,1711115466472,-668.63,0.00033972,2]
[320050517,1711115466481,-2385.98,0.00033972,2]
[320050518,1711115466491,-500.0,0.00033972,2]
[320050519,1711115466502,-1835.6,0.00033972,2]
[320050520,1711115466512,-500.0,0.00033972,2]
[320050521,1711115466523,-500.0,0.00033972,2]
[320050522,1711115466534,-794.49,0.00033972,2]
[320050523,1711115466546,-1781.83,0.00033972,2]
[320050524,1711115466558,-5258.14,0.00033972,2]
[320050525,1711115466569,-493.45466401,0.00033972,2]
[320050526,1711115466579,-665.32,0.00033972,2]
[320050527,1711115466590,-1976.587665,0.00033989,2]
[320050528,1711115466599,-206.875072,0.00033989,2]
[320050529,1711115466609,-250.604566,0.00033989,2]
[320050530,1711115466618,-524.590679,0.00033989,2]
[320050531,1711115466628,-784.577607,0.00033989,2]
[320050532,1711115466638,-864.58370043,0.00034,4]
[320050533,1711115466647,-500.0,0.00034,5]
[320050534,1711115466656,-151.14963814,0.00034058,2]
[320050535,1711115466666,-164.384459,0.00034129,2]
[320050536,1711115466676,-191.041358,0.00034198,2]
[320050537,1711115466686,-654.33238,0.00034198,2]
[320050538,1711115466697,-733.637328,0.00034198,2]
[320050539,1711115466707,-153.0,0.00034247,2]
[320050540,1711115466718,-306.0,0.00034247,2]
[320050541,1711115466729,-153.0,0.00034247,2]
[320050542,1711115466740,-153.0,0.00034247,2]
[320050543,1711115466750,-403.6095882,0.00034247,2]
[320050544,1711115466760,-153.0,0.00034384,2]
[320050545,1711115466770,-1976.587665,0.00034408,2]
[320050546,1711115466779,-206.875072,0.00034408,2]
[320050547,1711115466789,-250.604566,0.00034408,2]
[320050548,1711115466801,-524.590679,0.00034408,2]
[320050549,1711115466811,-784.577607,0.00034408,2]
[320050550,1711115466820,-151.654482,0.00034408,2]
[320050551,1711115466830,-955.22,0.0003452,2]
[320050552,1711115466840,-676.25,0.0003452,2]
[320050553,1711115466853,-500.0,0.0003452,2]
[320050554,1711115466862,-616.97,0.0003452,2]
[320050555,1711115466874,-808.45,0.0003452,2]
[320050556,1711115466884,-500.0,0.0003452,2]
[320050557,1711115466893,-616.53,0.0003452,2]
[320050558,1711115466903,-500.0,0.0003452,2]
[320050559,1711115466913,-2114.34,0.0003452,2]
[320050560,1711115466924,-579.77,0.0003452,2]
[320050561,1711115466934,-854.2,0.0003452,2]
[320050562,1711115466944,-1432.33,0.0003452,2]
[320050563,1711115466955,-1109.84,0.0003452,2]
[320050564,1711115466965,-2496.11,0.0003452,2]
[320050565,1711115466975,-705.27,0.0003452,2]
[320050566,1711115466985,-811.02,0.0003452,2]
[320050567,1711115466995,-1450.07,0.0003452,2]
[320050568,1711115467006,-525.82,0.0003452,2]
[320050569,1711115467016,-594.77,0.0003452,2]
[320050570,1711115467025,-2110.5,0.0003452,2]
[320050571,1711115467035,-653.88,0.0003452,2]
[320050572,1711115467047,-500.0,0.0003452,2]
[320050573,1711115467057,-500.0,0.0003452,2]
[320050574,1711115467067,-500.0,0.0003452,2]
[320050575,1711115467076,-2170.67,0.0003452,2]
[320050576,1711115467086,-500.0,0.0003452,2]
[320050577,1711115467095,-500.0,0.0003452,2]
[320050578,1711115467105,-500.0,0.0003452,2]
[320050579,1711115467114,-500.0,0.0003452,2]
[320050580,1711115467124,-3328.74,0.0003452,2]
[320050581,1711115467133,-548.48263708,0.0003452,2]
[320050582,1711115467143,-500.0,0.0003452,2]
[320050583,1711115467152,-872.36,0.0003452,2]
[320050584,1711115467162,-567.31,0.0003452,2]
[320050585,1711115467173,-523.07,0.0003452,2]
[320050586,1711115467183,-500.0,0.0003452,2]
[320050587,1711115467194,-500.0,0.0003452,2]
[320050588,1711115467204,-662.01,0.0003452,2]
[320050589,1711115467214,-500.0,0.0003452,2]
[320050590,1711115467223,-2025.62,0.0003452,2]
[320050591,1711115467233,-500.0,0.0003452,2]
[320050592,1711115467245,-500.0,0.0003452,2]
[320050593,1711115467255,-9316.4,0.0003452,2]
[320050594,1711115467272,-500.0,0.0003452,2]
[320050595,1711115467282,-2931.18,0.0003452,2]
[320050596,1711115467294,-500.0,0.0003452,2]
[320050597,1711115467306,-500.0,0.0003452,2]
[320050598,1711115467317,-891.94,0.0003452,2]
[320050599,1711115467328,-709.56,0.0003452,2]
[320050600,1711115467337,-572.61,0.0003452,2]
[320050601,1711115467348,-500.0,0.0003452,2]
[320050602,1711115467358,-22444.09,0.0003452,2]
[320050603,1711115467368,-505.53,0.0003452,2]
[320050604,1711115467378,-2628.51,0.0003452,2]
[320050605,1711115467387,-2148.91,0.0003452,2]
[320050606,1711115467405,-500.0,0.0003452,2]
[320050607,1711115467414,-599.04,0.0003452,2]
[320050608,1711115467424,-2181.35,0.0003452,2]
[320050609,1711115467446,-1053.89,0.0003452,2]
[320050610,1711115467456,-2225.28,0.0003452,2]
[320050611,1711115467467,-2785.42,0.0003452,2]
[320050612,1711115467478,-4008.14,0.0003452,2]
[320050613,1711115467489,-3127.98,0.0003452,2]
[320050614,1711115467499,-500.0,0.0003452,2]
[320050615,1711115467510,-561.94,0.0003452,2]
[320050616,1711115467521,-547.24,0.0003452,2]
[320050617,1711115467533,-1586.83,0.0003452,2]
[320050618,1711115467545,-905.49,0.0003452,2]
[320050619,1711115467558,-588.65,0.0003452,2]
[320050620,1711115467571,-604.36,0.0003452,2]
[320050621,1711115467583,-5969.81,0.0003452,2]
[320050622,1711115467615,-1166.06,0.0003452,2]
[320050623,1711115467629,-2279.41,0.0003452,2]
[320050624,1711115467641,-1051.13,0.0003452,2]
[320050625,1711115467653,-7429.30153882,0.0003452,2]
[320050632,1711115646427,18487.33823433,0.00015498,2]
[320050634,1711115658802,155.32188394,0.000195,2]
[320050651,1711115920199,-218.6638415,0.00024491,2]
[320050652,1711115920228,-170.941398,0.00024638,2]
[320050653,1711115920267,-401.79455975,0.00024658,2]
[320050654,1711115920301,-6914.11386493,0.00025,2]
[320050655,1711115920331,-187.32257474,0.00025272,2]
[320050681,1711116386890,203.16,0.000199,17]
[320050682,1711116454868,295.84600888,0.000199,2]
[320050683,1711116457570,1042.96963488,0.000199,2]
[320050684,1711116458083,45764.98621815,0.000199,2]
[320050685,1711116459636,155.09615962,0.000199,2]
[320050686,1711116460251,155.09615962,0.000199,2]
[320050687,1711116460596,155.09615962,0.000199,2]
[320050688,1711116461084,175.89111572,0.000199,2]
[320050689,1711116461109,137.12810331,0.000199,2]
[320050690,1711116463324,6349.87189669,0.000199,2]
[320050691,1711116463498,9628.48517176,0.000199,2]
[320050692,1711116469064,5169.56205362,0.00019701,2]
[320050693,1711116469114,779.72077743,0.0002,2]
[320050694,1711116471545,1042.96963488,0.000199,2]
[320050695,1711116472090,8679.26236231,0.000199,2]
[320050696,1711116472114,16464.58535771,0.000199,2]
[320050697,1711116474246,155.09615962,0.000199,2]
[320050698,1711116474594,155.09615962,0.000199,2]
[320050699,1711116475096,313.01921903,0.000199,2]
[320050700,1711116475647,155.09615962,0.000199,2]
[320050701,1711116476958,295.84600888,0.000199,2]
[320050702,1711116479305,9117.05090868,0.000199,2]
[320050703,1711116485047,5169.56205362,0.00019701,2]
[320050704,1711116487538,1042.96963488,0.000199,2]
[320050705,1711116491173,313.01921903,0.000199,2]
[320050706,1711116494610,240.01377454,0.000199,2]
[320050707,1711116495658,218.87200987,0.000199,2]
[320050708,1711116498879,240.36654653,0.000199,2]
[320050709,1711116500883,253.23802764,0.000199,2]
[320050710,1711116503047,4946.75520091,0.00019701,2]
[320050711,1711116509623,1042.96963488,0.000199,2]
[320050712,1711116513100,313.01921903,0.000199,2]
[320050713,1711116527537,1042.96963488,0.000199,2]
[320050714,1711116531244,313.01921903,0.000199,2]
[320050715,1711116547563,1042.96963488,0.000199,2]
[320050722,1711116551086,313.01921903,0.000199,2]
[320050751,1711116565544,1042.96963488,0.000199,2]
[320050755,1711116569096,276.40241262,0.000199,2]
[320050783,1711116587539,1042.96963488,0.000199,2]
[320050784,1711116611569,1042.96963488,0.000199,2]
[320050785,1711116627545,1042.96963488,0.000199,2]
[320050786,1711116628035,-1477.41463995,0.00020514,2]
[320050787,1711116628059,-2855.35363191,0.00020515,2]
[320050788,1711116628082,-470.70840451,0.00020614,2]
[320050789,1711116628107,-180.09437435,0.00020615,2]
[320050790,1711116628131,-559.58410516,0.00020616,2]
[320050791,1711116628155,-188.964037,0.00020617,2]
[320050814,1711116631998,-1300.61505009,0.00021373,2]
[320050815,1711116632008,-1337.32679486,0.00021481,5]
[320050816,1711116632018,-11894.65815505,0.00021674,2]
[320050836,1711116632442,1043.75206081,0.00020513,2]
[320050928,1711116637885,-35861.69381883,0.00021674,2]
[320050930,1711116637897,-3531.3527461,0.00021675,2]
[320050931,1711116637906,-210.224084,0.00021918,2]
[320050932,1711116637916,-24900.0,0.0002249,2]
[320050933,1711116637930,-169.0,0.00022936,2]
[320050934,1711116637941,-169.0,0.0002321,2]
[320050935,1711116637950,-166.31360127,0.0002327,2]
[320050936,1711116637960,-199.42962995,0.0002327,2]
[320050937,1711116637971,-989.51174973,0.0002337,2]
[320050938,1711116637981,-210.224084,0.00023452,2]
[320050939,1711116637990,-170.0,0.00023484,2]
[320050940,1711116637999,-166.31360123,0.00023847,2]
[320050941,1711116638008,-2886.531763,0.00024074,2]
[320050942,1711116638018,-166.31360123,0.00024423,2]
[320050943,1711116638027,-166.31360123,0.00025,2]
[320050944,1711116638037,-7752.82337168,0.00025,2]
[320050945,1711116638046,-156.25696391,0.00025271,2]
[320050946,1711116638056,-426.38734234,0.00025272,5]
[320050947,1711116638066,-431.35054896,0.00025272,2]
[320050948,1711116638075,-163.59021745,0.00025471,2]
[320050949,1711116638085,-1102.72774697,0.000255,17]
[320050950,1711116638094,-1000.0,0.00025564,2]
[320050951,1711116638103,-1566.34836897,0.00025564,2]
[320050952,1711116638112,-166.31360123,0.00025576,2]
[320050953,1711116638122,-3100.24031266,0.00025657,2]
[320050954,1711116638131,-194.38,0.00025657,35]
[320050955,1711116638141,-987.38885002,0.00025662,2]
[320050956,1711116638151,-617.12366123,0.00025662,2]
[320050957,1711116638160,-406.16093233,0.00025662,2]
[320050958,1711116638170,-779.02737889,0.00025662,2]
[320050959,1711116638184,-5537.80860274,0.00025663,2]
[320050960,1711116638194,-815.66428976,0.00025663,2]
[320050961,1711116638203,-275.42113425,0.00025663,2]
[320050962,1711116638212,-1955.0440075,0.00025663,2]
[320050963,1711116638222,-304.78785734,0.00025663,2]
[320050964,1711116638231,-205.13492374,0.00025663,2]
[320050965,1711116638240,-926635.5206105,0.00025676,60]
[320050966,1711116638254,-686.96544557,0.00025676,60]
[320050967,1711116638266,-4677.1311763,0.00025676,60]
[320050968,1711116638281,-11731.53464578,0.00025676,60]
[320050969,1711116638294,-1018.57256178,0.00025676,60]
[320051046,1711116639920,226.32370158,0.00022489,2]
[320051047,1711116639958,500.0,0.00022489,2]
[320051048,1711116639999,363.09391745,0.00022489,2]
[320051049,1711116640036,233.0646117,0.00021673,2]
[320051050,1711116640070,503.79689949,0.00022489,2]
[320051051,1711116640105,190.6826713,0.00021673,2]
[320051052,1711116640127,-1038.999992,0.00025676,60]
[320051106,1711116643378,-13764.772,0.00024036,30]
[320051107,1711116643388,-559.25596088,0.00025675,2]
[320051108,1711116643398,-5095.60156359,0.00025675,2]
[320051109,1711116643408,-180.09437435,0.00025675,2]
[320051110,1711116643418,-43855.1684977,0.00025676,60]
[320051111,1711116643434,-7736.1823125,0.00025676,60]
[320051129,1711116643629,-889880.25806537,0.00025676,60]
[320051131,1711116643638,-290.32753414,0.00025676,2]
[320051133,1711116643647,-1023237.5716217,0.00025676,60]
[320051135,1711116643657,-7024.50061931,0.00026841,2]
[320051137,1711116643666,-500.0,0.00027397,2]
[320051139,1711116643675,-500.0,0.00027397,2]
[320051141,1711116643690,-500.0,0.00027397,2]
[320051142,1711116643699,-500.0,0.00027397,2]
[320051143,1711116643709,-500.0,0.00027397,2]
[320051144,1711116643719,-500.0,0.00027397,2]
[320051145,1711116643729,-500.0,0.00027397,2]
[320051146,1711116643738,-500.0,0.00027397,2]
[320051147,1711116643748,-500.0,0.00027397,2]
[320051148,1711116643757,-500.0,0.00027397,2]
[320051149,1711116643766,-500.0,0.00027397,2]
[320051150,1711116643776,-317.66039417,0.00027397,2]
[320051151,1711116643785,-500.0,0.00027397,2]
[320051152,1711116643795,-500.0,0.00027397,2]
[320051153,1711116643804,-570.85928019,0.00027397,2]
[320051154,1711116643814,-500.0,0.00027397,2]
[320051155,1711116643823,-500.0,0.00027397,2]
[320051156,1711116643833,-500.0,0.00027397,2]
[320051157,1711116643842,-500.0,0.00027397,2]
[320051158,1711116643851,-500.0,0.00027397,2]
[320051159,1711116643860,-500.0,0.00027397,2]
[320051160,1711116643869,-500.0,0.00027397,2]
[320051161,1711116643882,-500.0,0.00027397,2]
[320051162,1711116643891,-456.70675139,0.00027397,2]
[320051163,1711116643901,-500.0,0.00027397,2]
[320051164,1711116643910,-500.0,0.00027397,2]
[320051165,1711116643920,-517.06,0.00027397,2]
[320051166,1711116643931,-1013.15,0.00027397,2]
[320051167,1711116643941,-550.0,0.00027397,2]
[320051168,1711116643949,-500.0,0.00027397,2]
[320051169,1711116643958,-500.0,0.00027397,2]
[320051170,1711116643967,-500.0,0.00027397,2]
[320051171,1711116643977,-500.0,0.00027397,2]
[320051172,1711116643987,-500.0,0.00027397,2]
[320051173,1711116643996,-500.0,0.00027397,2]
[320051174,1711116644005,-500.0,0.00027397,2]
[320051175,1711116644014,-500.0,0.00027397,2]
[320051176,1711116644023,-1285.99,0.00027397,2]
[320051177,1711116644033,-500.0,0.00027397,2]
[320051178,1711116644042,-1770.77,0.00027397,2]
[320051179,1711116644053,-604.19,0.00027397,2]
[320051180,1711116644062,-500.62140895,0.00027397,2]
[320051181,1711116644071,-500.0,0.00027397,2]
[320051182,1711116644080,-551.67,0.00027397,2]
[320051183,1711116644089,-500.0,0.00027397,2]
[320051184,1711116644098,-500.0,0.00027397,2]
[320051185,1711116644107,-879.38,0.00027397,2]
[320051186,1711116644116,-904.45,0.00027397,2]
[320051187,1711116644125,-500.0,0.00027397,2]
[320051188,1711116644134,-500.0,0.00027397,2]
[320051189,1711116644144,-500.0,0.00027397,2]
[320051190,1711116644155,-500.0,0.00027397,2]
[320051191,1711116644164,-535.326623,0.00027397,2]
[320051192,1711116644174,-500.0,0.00027397,2]
[320051193,1711116644187,-500.0,0.00027397,2]
[320051194,1711116644196,-500.0,0.00027397,2]
[320051195,1711116644205,-500.0,0.00027397,2]
[320051196,1711116644214,-500.0,0.00027397,2]
[320051197,1711116644223,-500.0,0.00027397,2]
[320051198,1711116644232,-500.0,0.00027397,2]
[320051199,1711116644242,-500.0,0.00027397,2]
[320051200,1711116644251,-500.0,0.00027397,2]
[320051201,1711116644260,-500.0,0.00027397,2]
[320051202,1711116644269,-500.0,0.00027397,2]
[320051203,1711116644278,-500.0,0.00027397,2]
[320051204,1711116644287,-500.0,0.00027397,2]
[320051205,1711116644297,-500.0,0.00027397,2]
[320051206,1711116644306,-500.0,0.00027397,2]
[320051207,1711116644315,-500.0,0.00027397,2]
[320051208,1711116644324,-500.0,0.00027397,2]
[320051209,1711116644333,-500.0,0.00027397,2]
[320051210,1711116644342,-500.0,0.00027397,2]
[320051211,1711116644351,-505.2617893,0.00027397,2]